Workbook

Sheet Лист1
F1: ОТЧЕТ
C2: о реализации проектов в рамках программы приграничного сотрудничества Европейского инструмента соседства и партнерства (ПГС) "Эстония - Латвия - Россия"
B5: Код по бюджетной классификации бюджета, предоставляющего межбюджетный трансферт | C5: Код по классификации доходов бюджета, получающего межбюджетный трансферт | D5: Утверждено бюджетных назначений на 2012 год | E5: Неиспользованный остаток межбюджетного трансферта, подлежащий возврату | F5: Расходы, подтвержденные документами | H5: Принятые бюджетные обязательства | L5: Примечания
H6: контрагент | I6: номер и дата договора | J6: сумма договора | K6: выполнено работ (сумма) | L6: (перечень основных видов выполненных работ, причины возникновения остатка)
B7: 1 | C7: 5 | D7: 2 | E7: 3 | F7: 4 | H7: 6 | I7: 7 | J7: 8 | K7: 9 | L7: 10

Sheet Лист2
J3: ОТЧЕТ
C4: об использовании субсидии, предоставленной из областного бюджета Ленинградской области Скребловскому сельскому поселению Лужского муниципального района ЛО на реализацию проектов местных инициатив граждан в рамках подпрограммы «Создание условий для эффективного выполнения органами местного самоуправления своих полномочий» государственной программы Ленинградской области «Устойчивое общественное развитие в Ленинградской области» за 2015 год
B6: Код по бюджетной классификации бюджета, предостав-ляющего межбюджетный трансферт | C6: Код по классификации доходов бюджета, получающего межбюджетный трансферт | D6: Утверждено бюджетных назначений на 2015 год (областной и местный бюджет) | E6: Поступило средств областного бюджета | F6: Размер софинансирования из местного бюджета | G6: Расходы, подтвержденные документами и произведенные за счет средств областного бюджета | H6: Расходы, подтвержденные документами и произведенные за счет средств местного бюджета | I6: Неиспользо-ванный остаток межбюджетного трансферта, подлежащий возврату | J6: Наименование мероприятия | M6: Принятые бюджетные обязательства
M7: контрагент | N7: номер и дата договора | O7: наименование работ | P7: сумма договора | Q7: выполнено работ (сумма) | R7: номер, дата акта выпол-ненных работ | S7: Фактические показатели результативности использования субсидии
B8: 990 1403 6637088 521 251 | C8: 011 202 02999 10 0000 151 | D8: =E8+F8 -> 358357.31 | E8: 325779,39 | F8: 32577,92 | G8: 325779,39 | H8: 32577,92 | I8: =E8-G8 -> 0 | J8: Ремонт участка дороги общего пользования местного значения д.Наволок | M8: ООО "Вираж" | N8: МК № 238983 от 13.07.15г.( с ДС от 12.08.15г) | O8: Ремонт участка дороги общего пользования местного значения д.Наволок | P8: 358357.31 | Q8: 358357.31 | R8: Акт №1/7 (КС 2) от 13.08.15г. к см. № 5, | S8: 900
D9: =E9+F9 -> 76849.02 | E9: 69862,75 | F9: 6986,27 | G9: 69862,75 | H9: 6986,27 | I9: =E9-G9 -> 0 | J9: Ремонт участка дороги общего пользования местного значения д.Калгановка | M9: ООО "Вираж" | N9: МК № 238983 от 13.07.15г.( с ДС от 12.08.15г) | O9: Ремонт участка дороги общего пользования местного значения д.Калгановка | P9: 76849.02 | Q9: 76849.02 | R9: Акт №1/5 (КС 2) от 13.08.15г. к см. № 6, | S9: 193
D10: 76849.02 | E10: 69862,75 | F10: 6986,27 | G10: 69862,75 | H10: 6986,27 | I10: 0 | J10: Ремонт участка дороги общего пользования местного значения д.Петровская Горка | M10: ООО "Вираж" | N10: МК № 238983 от 13.07.15г.( с ДС от 12.08.15г) | O10: Ремонт участка дороги общего пользования местного значения д.Петровская Горка | P10: 76849.02 | Q10: 76849.02 | R10: Акт №1/6 (КС 2) от 13.08.15г. к см. № 6, | S10: 193
D11: 76849.02 | E11: 69862,75 | F11: 6986,27 | G11: 69862,75 | H11: 6986,27 | I11: 0 | J11: Ремонт участка дороги общего пользования местного значения д.Великое Село и Заречье | M11: ООО "Вираж" | N11: МК № 238983 от 13.07.15г.( с ДС от 12.08.15г) | O11: Ремонт участка дороги общего пользования местного значения д.Великое Село и Заречье | P11: 76849.02 | Q11: 76849.02 | R11: Акт №1/3 (КС 2) от 13.08.15г. к см. № 7, | S11: 193
D12: 76849.02 | E12: 69862,75 | F12: 6986,27 | G12: 69862,75 | H12: 6986,27 | I12: 0 | J12: Ремонт участка дороги общего пользования местного значения д.Домкино | M12: ООО "Вираж" | N12: МК № 238983 от 13.07.15г.( с ДС от 12.08.15г) | O12: Ремонт участка дороги общего пользования местного значения д.Домкино | P12: 76849.02 | Q12: 76849.02 | R12: Акт №1/4 (КС 2) от 13.08.15г. к см. № 8, | S12: 193
D13: 76849.02 | E13: 69862,75 | F13: 6986,27 | G13: 69862,75 | H13: 6986,27 | I13: 0 | J13: Ремонт участка дороги общего пользования местного значения д.Старая Середка | M13: ООО "Вираж" | N13: МК № 238983 от 13.07.15г.( с ДС от 12.08.15г) | O13: Ремонт участка дороги общего пользования местного значения д.Старая Середка | P13: 76849.02 | Q13: 76849.02 | R13: Акт №1/2 (КС 2) от 13.08.15г. к см. № 9, | S13: 193
D14: 129203.49 | E14: 117457,73 | F14: 11745,76 | G14: 117457,73 | H14: 11745,76 | I14: 0 | J14: Ремонт участка дороги общего пользования местного значения д.Ванино Поле и Задубье | M14: ООО "Вираж" | N14: МК № 238983 от 13.07.15г.( с ДС от 12.08.15г) | O14: Ремонт участка дороги общего пользования местного значения д.Ванино Поле и Задубье | P14: 129203.49 | Q14: 129203.49 | R14: Акт №1/1 (КС 2) от 13.08.15г. к см. № 10, | S14: 338
D15: 451172 | E15: 341449,13 | F15: 109722,87 | G15: 341449,13 | H15: 109722,87 | I15: 0 | J15: Ремонт участка дороги общего пользования местного значения д.Задубье | M15: ООО "Вираж" | N15: МК 0145300013614000010 от 21.10.15г. | O15: Ремонт участка дороги общего пользования местного значения д.Задубье | P15: 451172 | Q15: 451172 | R15: Акт №1 (КС 2) от 30.10.15г. к см. № 1, | S15: 1225
B16: Итого по ООО "ВИРАЖ" по 2-м МК | D16: 1322977.9 | E16: =E8+E9+E10+E11+E12+E13+E14+E15 -> 1134000 | F16: 188977.9 | G16: 1134000 | H16: 188977.9 | I16: 0 | P16: =P8+P9+P10+P11+P12+P13+P14+P15 -> 1322977.9 | Q16: =Q8+Q9+Q10+Q11+Q12+Q13+Q14+Q15 -> 1322977.9
B18: 990 1403 6637088 521 251 | C18: 011 202 02999 10 0000 151 | D18: =E18+F18 -> 195401.86 | E18: 158145,00 | F18: 37256,86 | G18: 158145,00 | H18: 37256,86 | I18: =E18-G18 -> 0 | J18: Замена светильников уличного освещения в д.Наволок | M18: ООО "СтройЭнергоСервис"" | N18: Контракт 32/с/15 от 23.07.15г.на материалы - 96360,10руб. И Контракт 29/С/15 от 30.07.15 г. на работы - 99041,76 руб. | O18: Замена светильников уличного освещения в д.Наволок | P18: 195401.86 | Q18: =P18 -> 195401.86 | R18: накл. 172 от 28.07.15г.; акт 1(КС-2) от 25.08.15г. | S18: 17
D19: =E19+F19 -> 189817.34 | E19: 153620 | F19: 36197.34 | G19: 153620 | H19: 36197.34 | I19: =E19-G19 -> 0 | J19: Замена светильников уличного освещения в д.Госткино | M19: ООО "СтройЭнергоСервис"" | N19: Контракт 31/с/15 от 23.07.15г.на материалы - 91523,10руб. И Контракт 28/С/15 от 30.07.15 г. на работы - 98294,24 руб. | O19: Замена светильников уличного освещения в д.Госткино | P19: 189817.34 | Q19: 189817.34 | R19: накл. 173 от 29.07.15г.; акт 1(КС-2) от 25.08.15г. | S19: 16
D20: 195422.56 | E20: 158155 | F20: 37267.56 | G20: 158155 | H20: 37267.56 | I20: 0 | J20: Замена светильников уличного освещения в д.Голубково | M20: ООО "СтройЭнергоСервис"" | N20: Контракт 33/с/15 от 23.07.15г.на материалы - 96380,80руб. И Контракт 30/С/15 от 30.07.15 г. на работы - 99041,76 руб. | O20: Замена светильников уличного освещения в д.Голубково | P20: 195422.56 | Q20: 195422.56 | R20: накл. 171 от 27.07.15г.; акт 1(КС-2) от 25.08.15г. | S20: 17
I21: 0
B22: Итого по ООО "Вираж" | D22: =D18+D19+D20 -> 580641.76 | E22: =E18+E19+E20 -> 469920 | F22: 110721.76 | G22: 469920 | H22: 110721.76 | I22: 0 | P22: =P18+P19+P20 -> 580641.76 | Q22: =Q18+Q19+Q20 -> 580641.76
B23: ИТОГО | D23: =D16+D22 -> 1903619.66 | E23: =E16+E22 -> 1603920 | F23: =F16+F22 -> 299699.66 | G23: =G16+G22 -> 1603920 | H23: =H16+H22 -> 299699.66 | I23: =E23-G23 -> 0 | P23: =P16+P22 -> 1903619.66 | Q23: =Q16+Q22 -> 1903619.66
B24: Глава администрации поселения Ленинградской области __________ Н.Е.Кулакова (подпись) (фамилия, инициалы) Руководитель финансового органа ___________ М.Н.Куваева (подпись) (фамилия, инициалы) | N24: Согласовано : председатель комитета по местному самоуправлению, межнациональным и межконфессиональным отношениям Ленинградской области __________ Бурак Л.В.
B27: Исполнитель Куваева Марина Николаевна тел. 8-81372-58-517
B28: (фамилия, инициалы) (номер телефона)
B29: 26 декабря 2015 года
B31: Согласовано : Комитет финансов Лужского МР ЛО
B33: ________________ __________________
B35: "_____" декабря 2015г.
D54: % | G54: дороги | N54: замена светильников
B55: Всего | C55: =G55+N55 -> 1903619.66 | D55: =D56+D58 -> 100 | G55: =G56+G58 -> 1322977.9 | N55: =N56+N58 -> 580641.76
B56: Обл.бюдж. | C56: =G56+N56 -> 1603920 | D56: =C56/C55*100 -> 84.25632671 | G56: =E16 -> 1134000 | I56: =G56/G55*100 -> 85.71571755 | N56: =E22 -> 469920 | O56: =N56/N55*100 -> 80.93114074
B58: местн.бюд. | C58: =G58+N58 -> 299699.66 | D58: =C58/C55*100 -> 15.74367329 | G58: 188977.9 | I58: =G58/G55*100 -> 14.28428245 | N58: 110721.76 | O58: =N58/N55*100 -> 19.06885926
